fUSD/lending_fUSD_20240803
["ID","MTS","AMOUNT","RATE_DAILY","PERIOD"]
[334002440,1722672663985,-500.0,0.0001726,2]
[334002441,1722672663994,-500.0,0.0001726,2]
[334002442,1722672664004,-500.0,0.0001726,2]
[334002443,1722672664014,-500.0,0.0001726,2]
[334002444,1722672664024,-500.0,0.0001726,2]
[334002445,1722672664034,-500.0,0.0001726,2]
[334002446,1722672664044,-706.98,0.0001726,2]
[334002447,1722672664054,-500.0,0.0001726,2]
[334002448,1722672664063,-500.0,0.0001726,2]
[334002449,1722672664074,-500.0,0.0001726,2]
[334002450,1722672664084,-500.0,0.0001726,2]
[334002451,1722672664094,-500.0,0.0001726,2]
[334002452,1722672664104,-500.0,0.0001726,2]
[334002453,1722672664114,-696.17,0.0001726,2]
[334002454,1722672664123,-500.0,0.0001726,2]
[334002455,1722672664133,-516.63344938,0.0001726,2]
[334002456,1722672664143,-500.0,0.0001726,2]
[334002457,1722672664152,-500.0,0.0001726,2]
[334002458,1722672664162,-500.0,0.0001726,2]
[334002459,1722672664172,-500.0,0.0001726,2]
[334002460,1722672664182,-500.0,0.0001726,2]
[334002461,1722672664191,-500.0,0.0001726,2]
[334002462,1722672664202,-500.0,0.0001726,2]
[334002463,1722672664212,-500.0,0.0001726,2]
[334002464,1722672664222,-500.0,0.0001726,2]
[334002465,1722672664233,-500.0,0.0001726,2]
[334002466,1722672664242,-292.95256211,0.0001726,2]
[334002467,1722672664252,-500.0,0.0001726,2]
[334002468,1722672664262,-500.0,0.0001726,2]
[334002469,1722672664271,-508.13,0.0001726,2]
[334002470,1722672664281,-924.44,0.0001726,2]
[334002471,1722672664291,-500.0,0.0001726,2]
[334002472,1722672664301,-748.67,0.0001726,2]
[334002473,1722672664311,-500.0,0.0001726,2]
[334002474,1722672664323,-610.71,0.0001726,2]
[334002475,1722672664334,-377.15707364,0.0001726,2]
[334002476,1722672664347,-500.0,0.0001726,2]
[334002477,1722672664360,-616.11,0.0001726,2]
[334002478,1722672664371,-500.0,0.0001726,2]
[334002479,1722672664383,-500.0,0.0001726,2]
[334002480,1722672664395,-500.0,0.0001726,2]
[334002481,1722672664406,-500.0,0.0001726,2]
[334002482,1722672664416,-500.0,0.0001726,2]
[334002483,1722672664427,-500.0,0.0001726,2]
[334002484,1722672664439,-500.0,0.0001726,2]
[334002485,1722672664450,-500.0,0.0001726,2]
[334002486,1722672664462,-526.29,0.0001726,2]
[334002487,1722672664474,-804.34,0.0001726,2]
[334002488,1722672664486,-500.0,0.0001726,2]
[334002489,1722672664498,-500.0,0.0001726,2]
[334002490,1722672664514,-500.0,0.0001726,2]
[334002491,1722672664526,-500.0,0.0001726,2]
[334002492,1722672664538,-500.0,0.0001726,2]
[334002493,1722672664551,-500.0,0.0001726,2]
[334002494,1722672664563,-590.71,0.0001726,2]
[334002495,1722672664575,-500.0,0.0001726,2]
[334002496,1722672664590,-500.0,0.0001726,2]
[334002497,1722672664603,-572.46,0.0001726,2]
[334002498,1722672664614,-500.0,0.0001726,2]
[334002499,1722672664625,-500.0,0.0001726,2]
[334002500,1722672664637,-500.0,0.0001726,2]
[334002501,1722672664649,-500.0,0.0001726,2]
[334002502,1722672664661,-500.0,0.0001726,2]
[334002503,1722672664672,-500.0,0.0001726,2]
[334002504,1722672664684,-1146.83,0.0001726,2]
[334002505,1722672664696,-500.0,0.0001726,2]
[334002506,1722672664708,-951.73,0.0001726,2]
[334002507,1722672664719,-500.0,0.0001726,2]
[334002508,1722672664731,-888.24,0.0001726,2]
[334002509,1722672664743,-500.0,0.0001726,2]
[334002510,1722672664754,-1734.7,0.0001726,2]
[334002511,1722672664764,-500.0,0.0001726,2]
[334002512,1722672664775,-774.79,0.0001726,2]
[334002513,1722672664786,-500.0,0.0001726,2]
[334002514,1722672664798,-500.0,0.0001726,2]
[334002515,1722672664809,-500.0,0.0001726,2]
[334002516,1722672664820,-500.0,0.0001726,2]
[334002517,1722672664831,-219.18050171,0.0001726,2]
[334002518,1722672664842,-500.0,0.0001726,2]
[334002519,1722672664854,-500.0,0.0001726,2]
[334002520,1722672664866,-500.0,0.0001726,2]
[334002521,1722672664877,-682.31,0.0001726,2]
[334002522,1722672664888,-500.0,0.0001726,2]
[334002523,1722672664901,-500.0,0.0001726,2]
[334002524,1722672664913,-500.0,0.0001726,2]
[334002525,1722672664924,-500.0,0.0001726,2]
[334002526,1722672664936,-500.0,0.0001726,2]
[334002527,1722672664947,-500.0,0.0001726,2]
[334002528,1722672664958,-500.0,0.0001726,2]
[334002529,1722672664969,-648.41,0.0001726,2]
[334002530,1722672664979,-500.0,0.0001726,2]
[334002531,1722672664990,-795.59,0.0001726,2]
[334002532,1722672665000,-500.0,0.0001726,2]
[334002533,1722672665010,-500.0,0.0001726,2]
[334002534,1722672665021,-500.0,0.0001726,2]
[334002535,1722672665032,-723.82,0.0001726,2]
[334002536,1722672665044,-500.0,0.0001726,2]
[334002537,1722672665055,-500.0,0.0001726,2]
[334002538,1722672665067,-500.0,0.0001726,2]
[334002539,1722672665079,-500.0,0.0001726,2]
[334002540,1722672665090,-500.0,0.0001726,2]
[334002541,1722672665100,-500.0,0.0001726,2]
[334002542,1722672665110,-1168.92,0.0001726,2]
[334002543,1722672665123,-819.92,0.0001726,2]
[334002544,1722672665133,-500.0,0.0001726,2]
[334002545,1722672665145,-500.0,0.0001726,2]
[334002546,1722672665155,-500.0,0.0001726,2]
[334002547,1722672665168,-508.94,0.0001726,2]
[334002548,1722672665179,-582.03,0.0001726,2]
[334002549,1722672665190,-500.0,0.0001726,2]
[334002550,1722672665201,-618.32,0.0001726,2]
[334002551,1722672665212,-500.0,0.0001726,2]
[334002552,1722672665222,-1159.6,0.0001726,2]
[334002553,1722672665232,-500.0,0.0001726,2]
[334002554,1722672665242,-500.0,0.0001726,2]
[334002555,1722672665254,-500.0,0.0001726,2]
[334002556,1722672665264,-500.0,0.0001726,2]
[334002557,1722672665275,-500.0,0.0001726,2]
[334002558,1722672665285,-500.0,0.0001726,2]
[334002559,1722672665296,-577.66,0.0001726,2]
[334002560,1722672665307,-500.0,0.0001726,2]
[334002561,1722672665317,-500.0,0.0001726,2]
[334002562,1722672665327,-549.41,0.0001726,2]
[334002563,1722672665338,-500.0,0.0001726,2]
[334002564,1722672665349,-530.35,0.0001726,2]
[334002565,1722672665359,-500.0,0.0001726,2]
[334002566,1722672665370,-500.0,0.0001726,2]
[334002567,1722672665381,-925.21,0.0001726,2]
[334002568,1722672665391,-525.77,0.0001726,2]
[334002569,1722672665402,-500.0,0.0001726,2]
[334002570,1722672665412,-500.0,0.0001726,2]
[334002571,1722672665422,-500.0,0.0001726,2]
[334002572,1722672665433,-500.0,0.0001726,2]
[334002573,1722672665446,-500.0,0.0001726,2]
[334002574,1722672665457,-500.0,0.0001726,2]
[334002575,1722672665467,-904.56,0.0001726,2]
[334002576,1722672665478,-500.0,0.0001726,2]
[334002577,1722672665488,-501.53,0.0001726,2]
[334002578,1722672665498,-500.0,0.0001726,2]
[334002579,1722672665512,-500.0,0.0001726,2]
[334002580,1722672665523,-500.0,0.0001726,2]
[334002581,1722672665533,-622.55,0.0001726,2]
[334002582,1722672665544,-540.33,0.0001726,2]
[334002583,1722672665555,-500.0,0.0001726,2]
[334002584,1722672665566,-602.82,0.0001726,2]
[334002585,1722672665578,-644.95,0.0001726,2]
[334002586,1722672665590,-503.96,0.0001726,2]
[334002587,1722672665601,-500.0,0.0001726,2]
[334002588,1722672665612,-500.0,0.0001726,2]
[334002589,1722672665623,-825.13,0.0001726,2]
[334002590,1722672665634,-500.0,0.0001726,2]
[334002591,1722672665645,-469.30507919,0.0001726,2]
[334002592,1722672665656,-506.16404246,0.0001726,2]
[334002593,1722672665666,-500.0,0.0001726,2]
[334002594,1722672665677,-1519.4,0.0001726,2]
[334002595,1722672665688,-500.0,0.0001726,2]
[334002596,1722672665699,-500.0,0.0001726,2]
[334002597,1722672666608,-500.0,0.0001726,2]
[334002598,1722672666629,-500.0,0.0001726,2]
[334002599,1722672666656,-500.0,0.0001726,2]
[334002600,1722672666684,-506.42336425,0.0001726,2]
[334002601,1722672666695,-684.44,0.0001726,2]
[334002602,1722672666710,-500.0,0.0001726,2]
[334002603,1722672666720,-500.0,0.0001726,2]
[334002604,1722672666729,-500.0,0.0001726,2]
[334002605,1722672666740,-500.0,0.0001726,2]
[334002606,1722672666750,-500.0,0.0001726,2]
[334002607,1722672666760,-584.67,0.0001726,2]
[334002608,1722672666770,-604.12,0.0001726,2]
[334002609,1722672666781,-528.36,0.0001726,2]
[334002610,1722672666790,-616.8,0.0001726,2]
[334002611,1722672666800,-204.30066078,0.0001726,2]
[334002612,1722672666810,-500.0,0.0001726,2]
[334002613,1722672666820,-500.0,0.0001726,2]
[334002614,1722672666831,-509.32,0.0001726,2]
[334002615,1722672666841,-500.0,0.0001726,2]
[334002616,1722672666852,-500.0,0.0001726,2]
[334002617,1722672666862,-500.0,0.0001726,2]
[334002618,1722672666872,-743.5,0.0001726,2]
[334002619,1722672666882,-1060.37,0.0001726,2]
[334002620,1722672666891,-500.0,0.0001726,2]
[334002621,1722672666901,-500.0,0.0001726,2]
[334002622,1722672666910,-352.13920027,0.0001726,2]
[334002623,1722672666920,-774.18,0.0001726,2]
[334002624,1722672666929,-848.13,0.0001726,2]
[334002625,1722672666939,-712.98,0.0001726,2]
[334002626,1722672666950,-500.0,0.0001726,2]
[334002627,1722672666960,-772.65,0.0001726,2]
[334002628,1722672666970,-744.14,0.0001726,2]
[334002629,1722672666980,-500.0,0.0001726,2]
[334002630,1722672666990,-500.0,0.0001726,2]
[334002631,1722672667000,-500.0,0.0001726,2]
[334002632,1722672667010,-958.9,0.0001726,2]
[334002633,1722672667019,-500.0,0.0001726,2]
[334002634,1722672667029,-500.0,0.0001726,2]
[334002635,1722672667039,-1086.35,0.0001726,2]
[334002636,1722672667048,-500.0,0.0001726,2]
[334002637,1722672667058,-500.0,0.0001726,2]
[334002638,1722672667067,-500.0,0.0001726,2]
[334002639,1722672667077,-500.0,0.0001726,2]
[334002640,1722672667086,-500.0,0.0001726,2]
[334002641,1722672667096,-879.02,0.0001726,2]
[334002642,1722672667105,-1083.8,0.0001726,2]
[334002643,1722672667118,-500.0,0.0001726,2]
[334002644,1722672667127,-500.0,0.0001726,2]
[334002645,1722672667137,-500.0,0.0001726,2]
[334002646,1722672667146,-515.45,0.0001726,2]
[334002647,1722672667155,-500.0,0.0001726,2]
[334002648,1722672667165,-500.0,0.0001726,2]
[334002649,1722672667175,-582.42,0.0001726,2]
[334002650,1722672667185,-500.0,0.0001726,2]
[334002651,1722672667194,-319.71188457,0.0001726,2]
[334002652,1722672667210,-500.0,0.0001726,2]
[334002653,1722672667219,-500.0,0.0001726,2]
[334002654,1722672667229,-500.0,0.0001726,2]
[334002655,1722672667239,-500.0,0.0001726,2]
[334002656,1722672667248,-167.96,0.0001726,2]
[334002657,1722672667258,-500.0,0.0001726,2]
[334002658,1722672667267,-500.0,0.0001726,2]
[334002659,1722672667277,-500.0,0.0001726,2]
[334002660,1722672667287,-500.0,0.0001726,2]
[334002661,1722672667297,-1218.45,0.0001726,2]
[334002662,1722672667306,-500.0,0.0001726,2]
[334002663,1722672667316,-500.0,0.0001726,2]
[334002664,1722672667326,-527.92,0.0001726,2]
[334002665,1722672667336,-532.53994635,0.0001726,2]
[334002666,1722672667345,-500.0,0.0001726,2]
[334002667,1722672667355,-500.0,0.0001726,2]
[334002668,1722672667364,-500.0,0.0001726,2]
[334002669,1722672667374,-500.0,0.0001726,2]
[334002670,1722672667384,-611.34,0.0001726,2]
[334002671,1722672667393,-513.40638546,0.0001726,2]
[334002672,1722672667403,-500.0,0.0001726,2]
[334002673,1722672667412,-500.0,0.0001726,2]
[334002674,1722672667422,-500.0,0.0001726,2]
[334002675,1722672667433,-500.0,0.0001726,2]
[334002676,1722672667443,-705.81,0.0001726,2]
[334002677,1722672667454,-661.0,0.0001726,2]
[334002678,1722672667463,-342.67,0.0001726,2]
[334002679,1722672667473,-500.0,0.0001726,2]
[334002680,1722672667483,-500.0,0.0001726,2]
[334002681,1722672667493,-500.0,0.0001726,2]
[334002682,1722672667502,-500.0,0.0001726,2]
[334002683,1722672667516,-638.82,0.0001726,2]
[334002684,1722672667525,-500.0,0.0001726,2]
[334002685,1722672667535,-176.13563771,0.0001726,2]
[334002686,1722672667546,-744.23,0.0001726,2]
[334002687,1722672667557,-500.0,0.0001726,2]
[334002688,1722672667567,-500.0,0.0001726,2]
[334002689,1722672667577,-570.99,0.0001726,2]
[334002690,1722672667589,-727.54,0.0001726,2]
[334002691,1722672667599,-500.0,0.0001726,2]
[334002692,1722672667610,-500.0,0.0001726,2]
[334002693,1722672667619,-617.25,0.0001726,2]
[334002694,1722672667629,-500.0,0.0001726,2]
[334002695,1722672667638,-714.79,0.0001726,2]
[334002696,1722672667648,-556.41,0.0001726,2]
[334002697,1722672667658,-516.92165522,0.0001726,2]
[334002698,1722672667668,-500.0,0.0001726,2]
[334002699,1722672667677,-500.0,0.0001726,2]
[334002700,1722672667687,-284.8301717,0.0001726,2]
[334002701,1722672667697,-500.0,0.0001726,2]
[334002702,1722672667706,-788.92,0.0001726,2]
[334002703,1722672667716,-1029.17,0.0001726,2]
[334002704,1722672667726,-500.0,0.0001726,2]
[334002705,1722672667736,-500.0,0.0001726,2]
[334002706,1722672667746,-710.03,0.0001726,2]
[334002707,1722672667755,-738.88,0.0001726,2]
[334002708,1722672667765,-539.38,0.0001726,2]
[334002709,1722672667775,-808.77,0.0001726,2]
[334002710,1722672667785,-500.0,0.0001726,2]
[334002711,1722672667794,-500.0,0.0001726,2]
[334002712,1722672667804,-500.0,0.0001726,2]
[334002713,1722672667813,-830.0,0.0001726,2]
[334002714,1722672667823,-554.02,0.0001726,2]
[334002715,1722672667833,-500.0,0.0001726,2]
[334002716,1722672667843,-525.28,0.0001726,2]
[334002717,1722672667853,-726.72,0.0001726,2]
[334002718,1722672667863,-500.0,0.0001726,2]
[334002719,1722672667873,-500.0,0.0001726,2]
[334002720,1722672667883,-500.0,0.0001726,2]
[334002721,1722672667893,-663.62,0.0001726,2]
[334002722,1722672667903,-500.0,0.0001726,2]
[334002723,1722672667913,-500.0,0.0001726,2]
[334002724,1722672667924,-547.37,0.0001726,2]
[334002725,1722672667934,-500.0,0.0001726,2]
[334002726,1722672667943,-500.0,0.0001726,2]
[334002727,1722672667953,-658.43,0.0001726,2]
[334002728,1722672667963,-529.53,0.0001726,2]
[334002729,1722672667972,-1319.94,0.0001726,2]
[334002730,1722672667982,-1146.49,0.0001726,2]
[334002731,1722672667992,-4233.34,0.0001726,2]
[334002732,1722672668002,-500.0,0.0001726,2]
[334002733,1722672668012,-955.66,0.0001726,2]
[334002734,1722672668021,-595.12,0.0001726,2]
[334002735,1722672668031,-746.94,0.0001726,2]
[334002736,1722672668040,-673.07,0.0001726,2]
[334002737,1722672668050,-500.0,0.0001726,2]
[334002738,1722672668060,-834.43,0.0001726,2]
[334002739,1722672668070,-9414.57,0.0001726,2]
[334002740,1722672668080,-430.52475715,0.0001726,2]
[334002741,1722672668090,-500.0,0.0001726,2]
[334002742,1722672668100,-500.0,0.0001726,2]
[334002743,1722672668110,-657.98,0.0001726,2]
[334002744,1722672668120,-1422.26,0.0001726,2]
[334002745,1722672668130,-500.0,0.0001726,2]
[334002746,1722672668140,-684.61,0.0001726,2]
[334002747,1722672668150,-500.0,0.0001726,2]
[334002748,1722672668161,-500.0,0.0001726,2]
[334002749,1722672668171,-573.59526112,0.0001726,2]
[334002750,1722672668181,-500.0,0.0001726,2]
[334002751,1722672668191,-905.13,0.0001726,2]
[334002752,1722672668201,-500.0,0.0001726,2]
[334002753,1722672668211,-755.85,0.0001726,2]
[334002754,1722672668220,-500.0,0.0001726,2]
[334002755,1722672668230,-500.0,0.0001726,2]
[334002756,1722672668240,-561.29,0.0001726,2]
[334002757,1722672668250,-500.0,0.0001726,2]
[334002758,1722672668259,-500.0,0.0001726,2]
[334002759,1722672668269,-500.0,0.0001726,2]
[334002760,1722672668279,-857.89,0.0001726,2]
[334002761,1722672668288,-42354.3,0.0001726,2]
[334002762,1722672668297,-580.03,0.0001726,2]
[334002763,1722672668307,-5350.45,0.0001726,2]
[334002764,1722672668317,-500.0,0.0001726,2]
[334002765,1722672668327,-728.4,0.0001726,2]
[334002766,1722672668337,-500.0,0.0001726,2]
[334002767,1722672668346,-500.0,0.0001726,2]
[334002768,1722672668357,-500.0,0.0001726,2]
[334002769,1722672668366,-3471.03,0.0001726,2]
[334002770,1722672668375,-609.74,0.0001726,2]
[334002771,1722672668385,-1689.99,0.0001726,2]
[334002772,1722672668394,-500.0,0.0001726,2]
[334002773,1722672668404,-6425.66,0.0001726,2]
[334002774,1722672668414,-648.94,0.0001726,2]
[334002775,1722672668423,-500.0,0.0001726,2]
[334002776,1722672668433,-1670.28,0.0001726,2]
[334002777,1722672668445,-13172.1,0.0001726,2]
[334002778,1722672668459,-6701.04,0.0001726,2]
[334002779,1722672668474,-2424.35,0.0001726,2]
[334002780,1722672668484,-1079.15,0.0001726,2]
[334002781,1722672668493,-697.85,0.0001726,2]
[334002782,1722672668504,-1261.65,0.0001726,2]
[334002783,1722672668516,-506.25671901,0.0001726,2]
[334002784,1722672668526,-1264.29,0.0001726,2]
[334002785,1722672668536,-500.0,0.0001726,2]
[334002786,1722672668547,-500.0,0.0001726,2]
[334002787,1722672668557,-3981.7,0.0001726,2]
[334002788,1722672668567,-808.41,0.0001726,2]
[334002789,1722672668576,-500.0,0.0001726,2]
[334002790,1722672668587,-9537.11,0.0001726,2]
[334002791,1722672668598,-500.0,0.0001726,2]
[334002792,1722672668608,-873.33,0.0001726,2]
[334002793,1722672668617,-627.46,0.0001726,2]
[334002794,1722672668628,-4527.79,0.0001726,2]
[334002795,1722672668638,-1120.2,0.0001726,2]
[334002796,1722672668648,-500.0,0.0001726,2]
[334002797,1722672668659,-1413.65,0.0001726,2]
[334002798,1722672668668,-500.0,0.0001726,2]
[334002799,1722672668678,-799.1,0.0001726,2]
[334002800,1722672668687,-2582.22,0.0001726,2]
[334002801,1722672668702,-500.0,0.0001726,2]
[334002802,1722672668714,-500.0,0.0001726,2]
[334002803,1722672668723,-500.0,0.0001726,2]
[334002804,1722672668733,-558.9,0.0001726,2]
[334002805,1722672668743,-500.0,0.0001726,2]
[334002806,1722672668753,-4338.65,0.0001726,2]
[334002807,1722672668763,-589.65,0.0001726,2]
[334002808,1722672668773,-500.0,0.0001726,2]
[334002809,1722672668782,-6299.84,0.0001726,2]
[334002810,1722672668792,-500.0,0.0001726,2]
[334002811,1722672668802,-3567.38,0.0001726,2]
[334002812,1722672668812,-504.8,0.0001726,2]
[334002813,1722672668822,-500.0,0.0001726,2]
[334002814,1722672668831,-1132.78,0.0001726,2]
[334002815,1722672668840,-527.09,0.0001726,2]
[334002816,1722672668850,-500.0,0.0001726,2]
[334002817,1722672668859,-500.0,0.0001726,2]
[334002818,1722672668869,-557.75,0.0001726,2]
[334002819,1722672668879,-500.0,0.0001726,2]
[334002820,1722672668888,-500.0,0.0001726,2]
[334002821,1722672668898,-775.61,0.0001726,2]
[334002822,1722672668908,-5075.14,0.0001726,2]
[334002823,1722672668917,-500.0,0.0001726,2]
[334002824,1722672668927,-1597.24,0.0001726,2]
[334002825,1722672668937,-524.51,0.0001726,2]
[334002826,1722672668950,-2236.78,0.0001726,2]
[334002827,1722672668960,-500.0,0.0001726,2]
[334002828,1722672668970,-591.43,0.0001726,2]
[334002829,1722672668979,-739.97,0.0001726,2]
[334002830,1722672668990,-1988.37,0.0001726,2]
[334002831,1722672669000,-7580.49,0.0001726,2]
[334002832,1722672669010,-500.0,0.0001726,2]
[334002833,1722672669021,-1153.18,0.0001726,2]
[334002834,1722672669101,-500.0,0.0001726,2]
[334002835,1722672669110,-1779.35,0.0001726,2]
[334002836,1722672669119,-806.0,0.0001726,2]
[334002837,1722672669129,-520.82,0.0001726,2]
[334002838,1722672669138,-1222.12,0.0001726,2]
[334002839,1722672669147,-500.0,0.0001726,2]
[334002840,1722672669157,-543.96,0.0001726,2]
[334002841,1722672669166,-500.0,0.0001726,2]
[334002842,1722672669175,-500.0,0.0001726,2]
[334002843,1722672669184,-2755.57,0.0001726,2]
[334002844,1722672669193,-1766.59,0.0001726,2]
[334002845,1722672669207,-500.0,0.0001726,2]
[334002846,1722672669216,-500.0,0.0001726,2]
[334002847,1722672669225,-6784.85,0.0001726,2]
[334002848,1722672669234,-500.0,0.0001726,2]
[334002849,1722672669244,-1170.99,0.0001726,2]
[334002850,1722672669253,-462.24811638,0.0001726,2]
[334002851,1722672669262,-500.0,0.0001726,2]
[334002852,1722672669271,-1509.0,0.0001726,2]
[334002853,1722672669280,-2272.41,0.0001726,2]
[334002854,1722672669289,-1134.66,0.0001726,2]
[334002855,1722672669298,-788.7,0.0001726,2]
[334002856,1722672669308,-500.0,0.0001726,2]
[334002857,1722672669317,-500.0,0.0001726,2]
[334002858,1722672669327,-500.0,0.0001726,2]
[334002859,1722672669336,-500.0,0.0001726,2]
[334002860,1722672669346,-500.0,0.0001726,2]
[334002861,1722672669355,-500.0,0.0001726,2]
[334002862,1722672669364,-556.92,0.0001726,2]
[334002863,1722672669374,-851.8,0.0001726,2]
[334002864,1722672669383,-500.0,0.0001726,2]
[334002865,1722672669394,-829.82,0.0001726,2]
[334002866,1722672669403,-500.0,0.0001726,2]
[334002867,1722672669412,-978.08,0.0001726,2]
[334002868,1722672669422,-3555.81,0.0001726,2]
[334002869,1722672669431,-1000.11,0.0001726,2]
[334002870,1722672669440,-1173.97,0.0001726,2]
[334002871,1722672669453,-500.0,0.0001726,2]
[334002872,1722672669463,-500.0,0.0001726,2]
[334002873,1722672669473,-477.21964282,0.0001726,2]
[334002874,1722672669483,-500.0,0.0001726,2]
[334002875,1722672669492,-6514.15,0.0001726,2]
[334002876,1722672669501,-500.0,0.0001726,2]
[334002877,1722672669514,-828.77,0.0001726,2]
[334002878,1722672669524,-1272.15,0.0001726,2]
[334002879,1722672669534,-3333.78,0.0001726,2]
[334002880,1722672669543,-1643.08,0.0001726,2]
[334002881,1722672669553,-2015.77,0.0001726,2]
[334002882,1722672669562,-1598.98,0.0001726,2]
[334002883,1722672669571,-3382.08,0.0001726,2]
[334002884,1722672669581,-1056.18,0.0001726,2]
[334002885,1722672669592,-1410.26,0.0001726,2]
[334002886,1722672669601,-500.0,0.0001726,2]
[334002887,1722672669611,-500.0,0.0001726,2]
[334002888,1722672669619,-657.49,0.0001726,2]
[334002889,1722672669628,-500.0,0.0001726,2]
[334002890,1722672669637,-1314.36,0.0001726,2]
[334002891,1722672669647,-5105.47,0.0001726,2]
[334002892,1722672669656,-1117.0,0.0001726,2]
[334002893,1722672669665,-350.22,0.0001726,2]
[334002894,1722672669674,-863.0,0.0001726,2]
[334002895,1722672669684,-988.31,0.0001726,2]
[334002896,1722672669693,-500.0,0.0001726,2]
[334002897,1722672669704,-588.88,0.0001726,2]
[334002898,1722672669713,-916.53,0.0001726,2]
[334002899,1722672669723,-500.0,0.0001726,2]
[334002900,1722672669732,-3858.07,0.0001726,2]
[334002901,1722672669742,-886.61,0.0001726,2]
[334002902,1722672669752,-2523.24,0.0001726,2]
[334002903,1722672669763,-1144.92,0.0001726,2]
[334002904,1722672669773,-500.0,0.0001726,2]
[334002905,1722672669782,-1055.01,0.0001726,2]
[334002906,1722672669792,-500.0,0.0001726,2]
[334002907,1722672669801,-596.99,0.0001726,2]
[334002908,1722672669811,-500.0,0.0001726,2]
[334002909,1722672669820,-500.0,0.0001726,2]
[334002910,1722672669829,-867.52,0.0001726,2]
[334002911,1722672669838,-758.07,0.0001726,2]
[334002912,1722672669847,-500.0,0.0001726,2]
[334002913,1722672669857,-500.0,0.0001726,2]
[334002914,1722672669866,-1413.54,0.0001726,2]
[334002915,1722672669875,-500.0,0.0001726,2]
[334002916,1722672669886,-626.69,0.0001726,2]
[334002917,1722672669895,-1086.46,0.0001726,2]
[334002918,1722672669904,-500.0,0.0001726,2]
[334002919,1722672669913,-500.0,0.0001726,2]
[334002920,1722672669922,-2041.55,0.0001726,2]
[334002921,1722672669931,-1048.09,0.0001726,2]
[334002922,1722672669940,-945.91,0.0001726,2]
[334002923,1722672669949,-503.04,0.0001726,2]
[334002924,1722672669958,-2243.32,0.0001726,2]
[334002925,1722672669967,-500.0,0.0001726,2]
[334002926,1722672669976,-1876.41,0.0001726,2]
[334002927,1722672669985,-876.92,0.0001726,2]
[334002928,1722672669994,-500.0,0.0001726,2]
[334002929,1722672670003,-1974.73,0.0001726,2]
[334002930,1722672670012,-596.72,0.0001726,2]
[334002931,1722672670021,-500.0,0.0001726,2]
[334002932,1722672670030,-849.08,0.0001726,2]
[334002933,1722672670039,-1000.0,0.0001726,60]
[334002934,1722672670048,-1836.41,0.0001726,2]
[334002935,1722672670057,-3536.23,0.0001726,2]
[334002936,1722672670066,-1295.33,0.0001726,2]
[334002937,1722672670075,-500.0,0.0001726,2]
[334002938,1722672670085,-2083.37,0.0001726,2]
[334002939,1722672670093,-500.0,0.0001726,2]